Workbook

Sheet C.4.1 Implementation
B1: Table C.4.1: Price Schedule 1: Implementation
E3: Complete the grey shaded cells.
F4: Planning to Develop Solution Architecture Blueprint | J4: Execution | O4: Implementation
A5: Item No | B5: CCT Project Dimensions | C5: Implementation Component See CCT Proposed Solution Architecture in Schedule J NL: Indicates new SAP Module (License) | D5: Reference CCT Proposed Solution Architecture Blueprint | E5: Action | F5: Initiate and Plan Excl. VAT | G5: System Investigation and Analysis Excl. VAT | H5: Design Excl. VAT | I5: Notes | J5: Configuration Excl. VAT | K5: Customisation / Development Excl. VAT | L5: Integration Excl. VAT | M5: Internal Testing Excl. VAT | N5: Final Acceptance Testing (User Acceptance Testing) Excl. VAT | O5: GO-Live Excl. VAT | P5: Post Go-Live Stabilisation & Acceptance Excl. VAT | Q5: Project Management Excl. VAT | R5: Change Management Excl. VAT | S5: Total Implementation Component Excl. VAT
B6: Indicative Cost to Phase Allocation | F6: 15% to 20% | J6: 40% to 70% | O6: 15% to 30%
A7: Technical upgrade of the Current SAP Solutions to SAP HANA as a minimum viable solution landscape to replace and decommission all functionality in Current SAP Solution components that will not migrate; the migration of the Current SAP Solutions data and deployment of new SAP HANA functionality where Current SAP Solution functionality cannot be remediated.
A8: 1 | B8: Financial Management | C8: Finance (F1) / Budgets (F3) / Treasury (F4) | D8: J.1.4.1 | E8: Upgrade / Extend
A9: =A8+1 -> 2 | C9: NL: Asset Accounting / Insurance (F12) - Insurance Asset Register | D9: J.1.4.2 a | E9: New
A10: =A9+1 -> 3 | C10: NL: Funds Management | D10: J.1.4.2 b | E10: New
A11: 4 | B11: Asset Management | C11: Asset Lifecycle Management (O1a), Repairs and Maintenance (O1b) and Fleet Management (O1d) | D11: J.4.4.1 | E11: Upgrade / Extend
A12: 5 | C12: NL Release 1: Spatial Asset Management including Geo Enablement Framework | D12: J.4.4.2 a | E12: New
A13: 6 | C13: NL Release 2: Spatial Asset Management including Geo Enablement Framework | D13: J.4.4.2 a | E13: New
A14: 7 | C14: NL Release 1: Replacement of 1 Mobile application with SAP Service and Asset Manager (SSAM) | D14: J.4.4.2 b | E14: New
A15: 8 | C15: NL Release 1: Integrate 1 Mobile application with SAP Field Service Management (FSM) | D15: J.4.4.2 c | E15: New
A16: 9 | C16: Release 1: SAP S/4 Enterprise Asset Management (EAM) best practice framework for 1 core maintenance process | D16: J.4.4.2 d | E16: New
A17: 10 | B17: Real Estate Management | C17: Property Value Chain (O3) and Real Estate Management (O2) | D17: J.5.2.1 | E17: Upgrade / Extend
A18: 11 | C18: Treasury Loans | D18: J.5.2.2 a | E18: Upgrade / New
A19: 12 | B19: Utilities Management | C19: Revenue Management (F5) and Billing and Invoicing (F6) | D19: J.6.2.1 | E19: Upgrade / Extend
A20: 13 | C20: Release 1: Service Cloud Integration | D20: J.6.2.2 a | E20: New
A21: 14 | B21: Portfolio, Programme and Project Management | C21: Programme and Project Management (F7) | D21: J.7.2.1 | E21: Upgrade / Extend
A22: 15 | B22: Spend and Supply Chain Management | C22: Procurement (F8) / Contract Lifecycle Management (F9) / Inventory Management (O1c) / Manage Supplier and Sourcing (F13) | D22: J.8.5.1 | E22: Upgrade / Extend
A23: 16 | B23: Manage Human Resources | C23: NL: SuccessFactors Employee Central | D23: J.9.3.1 b | E23: New
A24: 17 | C24: Retain and remediate Payroll & Time on ECC6 | D24: J.9.3.1 c | E24: Upgrade / Extend
A25: 18 | C25: Retain and remediate Recruitment | D25: J.9.3.1 d | E25: Upgrade / Extend
A26: 19 | C26: NL Release 1: SuccessFactors Recruitment | D26: J.9.3.1 d | E26: New
A27: 20 | C27: NL Release 1: SuccessFactors SmartRecruiters | D27: J.9.3.1 d | E27: New
A28: 21 | C28: NL Release 1: SuccessFactors Onboarding | D28: J.9.3.1 e | E28: New
A29: 22 | C29: NL Release 1: Fast Roll-out Training solution - SAP Learning Hub | D29: J.9.3.1 f | E29: New
A30: 23 | C30: Remediate Current CCT EHS Solution | D30: J.9.3.1 h | E30: Upgrade / Extend
A31: 24 | B31: Service Management | C31: Retain and remediate current CRM | D31: J.10.4.1 b | E31: Upgrade / Extend
A32: 25 | C32: NL Release 1: Service Cloud including Utilities Add-on | D32: J.10.4.1 b | E32: New
A33: 26 | C33: NL Release 1: Self Service Management (Accelerator for Utilties) | D33: J.10.4.1 d | E33: New
A34: 27 | B34: Records Lifecycle Management | C34: Retain PSRM Records Management | D34: J.12.3.1 a | E34: Upgrade / Extend
A35: 28 | C35: NL Release 1: SAP Extended Enterprise Content Management | D35: J.12.3.1 a | E35: New
A36: 29 | C36: Folders Management | D36: J.12.3.1 b | E36: Upgrade / Extend
A37: 30 | C37: NL SAP Archiving and Document Access | D37: J.12.3.1 c | E37: New
B38: Generic | C38: Integrations (G1)
A39: =A37+1 -> 31 | C39: Integrations (G1) Migrate Process Orchestration to SAP Integration Suite NOTE: Summary Costing for Line Items 31.1 to 31.167 | D39: J.11.2.1 | E39: Upgrade / Extend | F39: =SUM(F161:F327) -> 0 | G39: =SUM(G161:G327) -> 0 | H39: =SUM(H161:H327) -> 0 | J39: =SUM(J161:J327) -> 0 | K39: 0 | L39: 0 | M39: 0 | N39: 0 | O39: 0 | P39: 0 | Q39: 0 | R39: 0 | S39: 0
A40: =A39+1 -> 32 | C40: Release 1: Integrate Service Cloud with MITEL | D40: J.10.4.1 c | E40: Upgrade / Extend
A41: 33 | C41: Release 2: Integrate Service Cloud with MITEL | D41: J.10.4.1 c | E41: Upgrade / Extend
C42: Reports, Data & Analytics (G3)
A43: =A41+1 -> 34 | C43: Remediate Existing Reports | D43: J.11.4.1 | E43: Upgrade / Extend
A44: 35 | C44: mSCOA - Migrate existing mSCOA functionality on SAP BW/4HANA | D44: J.11.4.1 c | E44: Upgrade / Extend
A45: 36 | C45: Release 1: Reporting, Data and Analytics Landscape | D45: J.11.4.2 b | E45: New
A46: 37 | C46: Release 2: Reporting, Data and Analytics Landscape | D46: J.11.4.2 b | E46: New
C47: Web-based Internal and External Portals with Self Service (E-Services) (G4)
A48: =A46+1 -> 38 | C48: Web-based Internal and External Portals with Self Service (E-Services) (G4) - Remediate current portal solutions NOTE: Summary Costing for Line Items 38.1 to 38.58 | D48: J.11.6.1 b | E48: Upgrade / Extend | F48: =SUM(F330:F387) -> 0 | G48: =SUM(G330:G387) -> 0 | H48: 0 | J48: =SUM(J330:J387) -> 0 | K48: 0 | L48: 0 | M48: 0 | N48: 0 | O48: 0 | P48: 0 | Q48: 0 | R48: 0 | S48: 0
A49: 39 | C49: NL SAP Build Work Zone for Internal and External Portals NOTE: Summary Costing for Line Items 39.1 to 39.58 | D49: J.11.6.1 b | E49: New | F49: =SUM(F390:F447) -> 0 | G49: =SUM(G390:G447) -> 0 | H49: 0 | J49: =SUM(J390:J447) -> 0 | K49: 0 | L49: 0 | M49: 0 | N49: 0 | O49: 0 | P49: 0 | Q49: 0 | R49: 0 | S49: 0
C50: Workflows (G5)
A51: =A49+1 -> 40 | C51: Remediate current workflows | D51: J.11.8.1 a | E51: Upgrade / Extend
A52: 41 | C52: Release 1: Transition to Flexible Workflows | D52: J.11.8.1 a | E52: New
A53: 42 | C53: Release 2: Transition to Flexible Workflows | D53: J.11.8.1 a | E53: New
A54: 43 | C54: Set-up Cloud Solution Workflow as per BRTM | D54: J.11.8.1 b J.11.8.1 d | E54: New
C55: Mobile and Mobile Field Services (O4)
A56: 44 | C56: Migrate current mobile solutions NOTE: Summary Costing for Line Items 44.1 to 44.26 | D56: J.11.10.1 a | E56: Upgrade / Extend | F56: =SUM(F450:F475) -> 0 | G56: =SUM(G450:G475) -> 0 | H56: 0 | J56: =SUM(J450:J475) -> 0 | K56: 0 | L56: 0 | M56: 0 | N56: 0 | O56: 0 | P56: 0 | Q56: 0 | R56: 0 | S56: 0
C57: Case Management (O5)
A58: 45 | C58: Migrate ECC Case Solutions to Folders Management NOTE: Summary Costing for Line Items 45.1 to 45.7 | D58: J.11.12.1 b | E58: Upgrade / Extend | F58: =SUM(F506:F512) -> 0 | G58: =SUM(G506:G512) -> 0 | H58: 0 | J58: =SUM(J506:J512) -> 0 | K58: 0 | L58: 0 | M58: 0 | N58: 0 | O58: 0 | P58: 0 | Q58: 0 | R58: 0 | S58: 0
A59: 46 | C59: Retain and Remediate PSRM Case Solutions NOTE: Summary Costing for Line Items 46.1 to 46.14 | D59: J.11.12.1 c | E59: Upgrade / Extend | F59: =SUM(F515:F528) -> 0 | G59: =SUM(G515:G528) -> 0 | H59: 0 | J59: 0 | K59: 0 | L59: 0 | M59: 0 | N59: 0 | O59: 0 | P59: 0 | Q59: 0 | R59: 0 | S59: 0
C60: Set-up Security & Authorisations (O6)
A61: =A59+1 -> 47 | C61: Retrofit Roles | D61: J.11.14.1 | E61: Extend / New
A62: Deploy Specialised SAP Cloud Products Solutions and out-of-the-box SAP S/4HANA capabilities and functionality not activated during the technical upgrade in line with the Business Requirements Traceability Matrix (BRTM).
A63: =A61+1 -> 48 | B63: Financial Management | C63: Finance (F1) / Budgets (F3) / Treasury (F4) - Deliver BRTM Scope through Standard SAP S/4HANA and Cloud Solution Functionality | D63: J.1.4.3 i | E63: Extend / New
A64: =A63+1 -> 49 | C64: SAP Analytics Cloud (SAC) Planning | D64: J.1.4.3 a | E64: New
A65: =A64+1 -> 50 | C65: Personnel Cost Planning (PCP) | D65: J.1.4.3 b | E65: New
A66: 51 | C66: Release 2: Migrate PaPM BW/4HANA Add-on to Profitability and Performance Management (PaPM) on Business Data Cloud | D66: J.1.4.3 c | E66: New
A67: 52 | C67: Release 3: Migrate PaPM BW/4HANA Add-on to Profitability and Performance Management (PaPM) on Business Data Cloud | D67: J.1.4.3 c | E67: New
A68: 53 | C68: Release 2: Migrate BPC BW/4HANA Add-on to SAP Analytics Cloud (SAC) Planning on Business Data Cloud | D68: J.1.4.3 d | E68: New
A69: 54 | C69: Release 3: Migrate BPC BW/4HANA Add-on to SAP Analytics Cloud (SAC) Planning on Business Data Cloud | D69: J.1.4.3 d | E69: New
A70: 55 | C70: mSCOA Alignment | D70: J.1.4.3 e | E70: Extend / New
A71: 56 | B71: Municipal Chart of Accounts | C71: mSCOA Embedded in SAP | D71: J.3.2.2 a | E71: New
A72: 57 | C72: mSCOA Reporting from SAP | D72: J.3.2.2 b | E72: New
A73: 58 | C73: mSCOA (F2) - Deliver BRTM Scope through Standard SAP S/4HANA and Cloud Solution Functionality | D73: J.3.2.2 c | E73: Extend / New
A74: 59 | B74: Asset Management | C74: Asset Lifecycle Management (O1a), Repairs and Maintenance (O1b) and Fleet Management (O1d) - Deliver BRTM Scope through Standard SAP S/4HANA and Cloud Solution Functionality | D74: J.4.4.3 h | E74: Extend / New
A75: 60 | C75: NL: SAP Service and Asset Manager (SSAM) | D75: J.4.4.3 a | E75: Extend / New
A76: 61 | C76: NL: SAP Field Service Management (FSM) | D76: J.4.4.3 b | E76: Extend / New
A77: 62 | C77: NL Release 2: Asset Performance Management | D77: J.4.4.3 c | E77: New
A78: 63 | C78: NL Release 3: Asset Performance Management | D78: J.4.4.3 c | E78: New
A79: 64 | C79: GIS Integration | D79: J.4.4.3 d | E79: Extend / New
A80: 65 | B80: Real Estate Management | C80: Property Value Chain (O3) and Real Estate Management (O2) - Deliver BRTM Scope through Standard SAP S/4HANA and Cloud Solution Functionality | D80: J.5.2.3 f | E80: Extend / New
A81: 66 | C81: Release 1: Adopts Geographical Enablement Framework (GEF) | D81: J.5.2.3 b | E81: Extend / New
A82: 67 | C82: Release 2: Adopts Geographical Enablement Framework (GEF) | D82: J.5.2.3 b | E82: Extend / New
A83: 68 | B83: Utilities Management | C83: Revenue Management (F5) and Billing and Invoicing (F6) - Deliver BRTM Scope through Standard SAP S/4HANA and Cloud Solution Functionality | D83: J.6.2.3 f | E83: Extend / New
A84: 69 | C84: NL Release 2: Cloud for Energy | D84: J.6.2.3 b | E84: New
A85: 70 | C85: NL Release 3: Cloud for Energy | D85: J.6.2.3 b | E85: New
A86: 71 | C86: Pre-Paid Vending Token Generation | D86: J.6.2.3 c | E86: New
A87: 72 | B87: Portfolio, Programme and Project Management | C87: Programme and Project Management (F7) - Deliver BRTM Scope through Standard SAP S/4HANA and Cloud Solution Functionality | D87: J.7.2.3 d | E87: Extend / New
A88: 73 | C88: Web Dynpro Replacement | D88: J.7.2.3 a | E88: Extend / New
A89: 74 | B89: Spend and Supply Chain Management | C89: Procurement (F8) / Contract Lifecycle Management (F9) / Inventory Management (O1c) / Manage Supplier and Sourcing (F13) - Deliver BRTM Scope through Standard SAP S/4HANA and Cloud Solution Functionality | D89: J.8.5.3 s | E89: Extend / New
A90: 75 | C90: NL: SAP Strategic Procurement | D90: J.8.5.3 b | E90: Extend / New
A91: 76 | C91: NL: SAP Ariba Supplier Risk | D91: J.8.5.3 c | E91: New
A92: 77 | C92: NL: SAP Ariba Spend Control Tower | D92: J.8.5.3 d | E92: New
A93: 78 | C93: NL: SAP Business Network Commerce Automation | D93: J.8.5.3 e | E93: New
A94: 79 | C94: NL: SAP Ariba Buying for SAP S/4HANA | D94: J.8.5.3 f | E94: New
A95: 80 | C95: NL: SAP Ariba Catalog | D95: J.8.5.3 g | E95: New
A96: 81 | C96: Supplier Registration: CSD Integration | D96: J.8.5.3 m | E96: New
A97: 82 | C97: Manage Contract Lifecycle - Replace CRMS with standard functionality | D97: J.8.5.3 n | E97: New
A98: 83 | C98: Replace Custom Demand Plan | D98: J.8.5.3 p | E98: New
A99: 84 | B99: Manage Human Resources | C99: Employee Central - Deliver BRTM Scope through Standard SAP Cloud Solution Functionality | D99: J.9.3.2 l | E99: Extend
A100: 85 | C100: NL Release 2: Employee Central Payroll including Time Tracking | D100: J.9.3.1 c | E100: New
A101: 86 | C101: NL Release 3: Employee Central Payroll including Time Tracking | D101: J.9.3.1 c | E101: New
A102: 87 | C102: NL Release 2: SuccessFactors Recruitment | D102: J.9.3.1 d | E102: New
A103: 88 | C103: NL Release 2: SuccessFactors SmartRecruiters | D103: J.9.3.1 d | E103: New
A104: 89 | C104: NL Release 2: SuccessFactors Onboarding | D104: J.9.3.1 e | E104: New
A105: 90 | C105: Release 2: SAP Learning Hub | D105: J.9.3.1 f J.9.3.2 b | E105: Extend / New
A106: 91 | C106: NL WalkMe Digital Adoption Platform | D106: J.9.3.1 f J.9.3.2 b | E106: New
A107: 92 | C107: NL WalkMe Premium for Ariba | D107: J.9.3.1 f J.9.3.2 b | E107: New
A108: 93 | C108: NL WalkMe for SAP SuccessFactors HCM | D108: J.9.3.1 f J.9.3.2 b | E108: New
A109: 94 | C109: NL WalkMe Premium for BTP solutions | D109: J.9.3.1 f J.9.3.2 b | E109: New
A110: 95 | C110: NL WalkMe Premium for Finance | D110: J.9.3.1 f J.9.3.2 b | E110: New
A111: 96 | C111: NL WalkMe Premium for S/4HANA Private Cloud | D111: J.9.3.1 f J.9.3.2 b | E111: New
A112: 97 | C112: NL WalkMe Premium for SAP CX solutions | D112: J.9.3.1 f J.9.3.2 b | E112: New
A113: 98 | C113: NL SuccessFactors Performance & Goals | D113: J.9.3.2 a | E113: New
A114: 99 | C114: NL SuccessFactors Career and Talent Development | D114: J.9.3.2 c | E114: New
A115: 100 | C115: NL SuccessFactors Compensation | D115: J.9.3.2 d | E115: New
A116: 101 | C116: Employee Relations through EC Extension | D116: J.9.3.2 f | E116: Extend
A117: 102 | C117: Employee Assistance and Wellness through EC Extension | D117: J.9.3.2 f | E117: Extend
A118: 103 | C118: Bursary Management through EC Extension | D118: J.9.3.2 f | E118: Extend
A119: 104 | C119: Workplace Skills Plan through EC Extension | D119: J.9.3.2 f | E119: Extend
A120: 105 | C120: NL: Travel Management SAP S/4HANA | D120: J.9.3.2 h | E120: New
A121: 106 | C121: NL: SAP Concur | D121: J.9.3.2 h | E121: New
A122: 107 | C122: NL Release 2: SAP S/4HANA Environment Health & Safety | D122: J.9.3.2 g | E122: New
A123: 108 | B123: Service Management | C123: NL Release 2: Service Cloud | D123: J.10.4.1 b | E123: New
A124: 109 | C124: CCT Employee Self Service (HR Service Desk) | D124: J.10.4.1 c | E124: New
A125: 110 | C125: Campaigns | D125: J.10.4.1 d | E125: New
A126: 111 | C126: Citizen Interface (CI) as engagement with CCT Citizen Interface Department | D126: J.10.4.1 e | E126: New
A127: 112 | B127: Records Lifecycle Management | C127: NL Release 2: SAP Extended Enterprise Content Management | D127: J.12.3.1 a | E127: New
A128: 113 | C128: Migrate PSRM to SAP Extended Enterprise Content Management | D128: J.12.3.2 a | E128: Extend
A129: =A128+1 -> 114 | C129: Set-Up Retention Rules | D129: J.12.3.2 b | E129: Extend
A130: 115 | B130: Signavio | C130: NL: Process Insights & Intelligence | E130: New
A131: 116 | C131: NL: Process Modeller | E131: New
A132: 117 | C132: NL: Process Transformation Manager | E132: New
A133: 118 | C133: NL: Process Colaboration Hub | E133: New
A134: 119 | B134: Accelerators, Tools and Templates
B135: Generic | C135: Integrations (G1)
A136: =A134+1 -> 120 | C136: Integrations (G1) - Deliver BRTM Scope through Standard SAP S/4HANA and Cloud Solution Functionality | D136: J.11.2.2 | E136: Upgrade / Extend
A137: =A136+1 -> 121 | C137: Integrate Service Cloud with Future CCT Channel Management solution | D137: J.10.4.1 c | E137: Upgrade / Extend
C138: Reports, Data & Analytics (G3)
A139: =A137+1 -> 122 | C139: Reports, Data & Analytics (G3) - SAP reporting and Embedded Analytics AND Deliver BRTM Scope through Standard SAP S/4HANA and Cloud Solution Functionality | D139: J.11.4.3 | E139: Extend / New
A140: 123 | C140: NL: SAP Business Data Cloud | D140: J.11.4.3 a | E140: Extend / New
C141: Web-based Internal and External Portals with Self Service (E-Services) (G4)
A142: =A140+1 -> 124 | C142: Web-based Internal and External Portals with Self Service (E-Services) (G4) - Deliver BRTM Scope through Standard SAP S/4HANA and Cloud Solution Functionality | D142: J.11.6.2 | E142: Extend / New
A143: 125 | C143: Release 2: Develop Self-service capability Build WorkZone | D143: J.10.4.1 d | E143: New
C144: Workflows (G5)
A145: =A143+1 -> 126 | C145: Workflows (G5) - Deliver BRTM Scope through Standard SAP S/4HANA and Cloud Solution Functionality | D145: J.11.8.2 | E145: Extend / New
C146: Mobile and Mobile Field Services (O4)
A147: =A145+1 -> 127 | C147: Transition to standard SAP Mobile Solutions NOTE: Summary Costing for Line Items 127.1 to 127.26 | D147: J.11.10.3 | E147: New | F147: =SUM(F478:F503) -> 0 | G147: =SUM(G478:G503) -> 0 | H147: 0 | J147: =SUM(J478:J503) -> 0 | K147: 0 | L147: 0 | M147: 0 | N147: 0 | O147: 0 | P147: 0 | Q147: 0 | R147: 0 | S147: 0
C148: Case Management (O5)
A149: =A147+1 -> 128 | C149: Migrate Folders Management Case Solutions to ESM NOTE: Summary Costing for Line Items 128.1 to 128.7 | D149: J.11.12.2 a | E149: New | F149: =SUM(F531:F537) -> 0 | G149: =SUM(G531:G537) -> 0 | H149: 0 | J149: =SUM(J531:J537) -> 0 | K149: 0 | L149: 0 | M149: 0 | N149: 0 | O149: 0 | P149: 0 | Q149: 0 | R149: 0 | S149: 0
A150: =A149+1 -> 129 | C150: Migrate PSRM Case Solutions to Folders Management NOTE: Summary Costing for Line Items 129.1 to 129.14 | D150: J.11.12.2 b | E150: New | F150: =SUM(F540:F553) -> 0 | G150: =SUM(G540:G553) -> 0 | H150: 0 | J150: =SUM(J540:J553) -> 0 | K150: 0 | L150: 0 | M150: 0 | N150: 0 | O150: 0 | P150: 0 | Q150: 0 | R150: 0 | S150: 0
A151: 130 | C151: Migrate PSRM Case Solutions to ESM NOTE: Summary Costing for Line Items 130.1 to 130.14 | D151: J.11.12.2 b | E151: New | F151: =SUM(F556:F569) -> 0 | G151: =SUM(G556:G569) -> 0 | H151: 0 | J151: =SUM(J556:J569) -> 0 | K151: 0 | L151: 0 | M151: 0 | N151: 0 | O151: 0 | P151: 0 | Q151: 0 | R151: 0 | S151: 0
C152: Set-up Security & Authirisations (O6)
A153: =A151+1 -> 131 | C153: NL SAP Audit Management | D153: J.11.14.2 a | E153: New
A154: 132 | C154: Set-up Roles and Access Control | D154: J.11.14.2 b | E154: Extend / New
A156: =A154+1 -> 133 | B156: Sub-Total Implementation Cost Schedule 1
B159: Functional Area | C159: Description of Integration | D159: BRTM Reference Number | E159: Action | F159: Initiate and Plan Excl. VAT | G159: System Investigation and Analysis Excl. VAT | H159: Design Excl. VAT | I159: Notes | J159: Configuration Excl. VAT | K159: Customisation / Development Excl. VAT | L159: Integration Excl. VAT | M159: Internal Testing Excl. VAT | N159: Final Acceptance Testing (User Acceptance Testing) Excl. VAT | O159: GO-Live Excl. VAT | P159: Post Go-Live Stabilisation & Acceptance Excl. VAT | Q159: Project Management Excl. VAT | R159: Change Management Excl. VAT | S159: Total Implementation Component Excl. VAT
B160: Integrations (G1) Migrate Process Orchestration to SAP Integration Suite | F160: Total of costing 31.1 to 31.167 will reflect in Line Item 31
A161: 31.1 | B161: SAP Utilities | C161: Bank Integration for payment files (EasyPay) | D161: #001 | E161: Extend / New
A162: 31.2 | B162: SAP Utilities | C162: Nedbank Connect Directly to Server | D162: #002 | E162: Extend / New
A163: 31.3 | B163: SAP Utilities | C163: Nedbank Connect Directly to Server | D163: #003 | E163: Extend / New
A164: 31.4 | B164: SAP Utilities | C164: Technical Master Data Interface | D164: #004 | E164: Extend / New
A165: 31.5 | B165: SAP Utilities | C165: Nedbank Connect Directly to Server | D165: #005 | E165: Extend / New
A166: 31.6 | B166: SAP Utilities | C166: Nedbank Connect Directly to Server | D166: #006 | E166: Extend / New
A167: 31.7 | B167: SAP Utilities | C167: Nedbank Connect Directly to Server | D167: #007 | E167: Extend / New
A168: 31.8 | B168: SAP Utilities | C168: Integration with Print Vendor | D168: #008 | E168: Extend / New
A169: 31.9 | B169: SAP Utilities | C169: Integration with Print Vendor | D169: #009 | E169: Extend / New
A170: 31.10 | B170: SAP Utilities | C170: Integration with Print Vendor | D170: #010 | E170: Extend / New
A171: 31.11 | B171: SAP Utilities | C171: Meter Replacement Data | D171: #011 | E171: Extend / New
A172: 31.12 | B172: SAP Utilities | C172: Debt Management Prepaid Collection | D172: #012 | E172: Extend / New
A173: 31.13 | B173: SAP Utilities | C173: Debt Management Prepaid Collection | D173: #013 | E173: Extend / New
A174: 31.14 | B174: SAP Utilities | C174: AMI Metering Master, Transactional and Event Data | D174: #014 | E174: Extend / New
A175: 31.15 | B175: SAP FI (Banking) | C175: Nedbank Connect Direct (Nedbank integration for receiving bank statements ) | D175: #015 | E175: Extend / New
A176: 31.16 | B176: SAP FI (Treasury) | C176: Nedbank Connect Direct (Nedbank integration for Investment payments) | D176: #016 | E176: Extend / New
A177: 31.17 | B177: SAP FI (Treasury) | C177: Nedbank Connect Direct (Nedbank integration messages) | D177: #017 | E177: Extend / New
A178: 31.18 | B178: SAP FI (Treasury) | C178: Bank Integration for third party receipting | D178: #018 | E178: Extend / New
A179: 31.19 | B179: SAP FI (Treasury) | C179: MyCiti bus AFC transactions | D179: #019 | E179: Extend / New
A180: 31.20 | B180: SAP (PAPM) | C180: PaPM post back to ECC | D180: #020 | E180: Extend / New
A181: 31.21 | B181: SAP Utilities | C181: Advanced Metering Infrastructure - pooling | D181: #021 | E181: Extend / New
A182: 31.22 | B182: SAP Utilities | C182: Facilities Management Energy and Water Data | D182: #022 | E182: Extend / New
A183: 31.23 | B183: SAP Utilities | C183: Energy GIS Data Integration | D183: #023 | E183: Extend / New
A184: 31.24 | B184: SAP Utilities | C184: Smart Metering Information | D184: #024 | E184: Extend / New
A185: 31.25 | B185: SAP Utilities | C185: Rates Clearance - Digitial Signature | D185: #025 | E185: Extend / New
A186: 31.26 | B186: SAP Utilities | C186: Rates Clearance - Vendor Application Submission (Lexis Nexus) | D186: #026 | E186: Extend / New
A187: 31.27 | B187: SAP Utilities | C187: Rates Clearance - Vendor Application Submission (E4) | D187: #027 | E187: Extend / New
A188: 31.28 | B188: SAP Utilities | C188: Meter Calibration Certification | D188: #028 | E188: Extend / New
A189: 31.29 | B189: SAP Utilities | C189: Meter Calibration Certification Digital Signature | D189: #029 | E189: Extend / New
A190: 31.30 | B190: SAP Utilities | C190: Property Valuation Extract for Energy | D190: #030 | E190: Extend / New
A191: 31.31 | B191: SAP Utilities | C191: City Reads Mobile App for Meter Readings | D191: #031 | E191: Extend / New
A192: 31.32 | B192: SAP Utilities | C192: Device Activities Mobile App | D192: #032 | E192: Extend / New
A193: 31.33 | B193: SAP Utilities | C193: e-Services(External Portal) integration to view Municipal Account | D193: #033 | E193: Extend / New
A194: 31.34 | B194: SAP Utilities | C194: External Portal Integration for SSEG Online Applications | D194: #034 | E194: Extend / New
A195: 31.35 | B195: SAP HCM | C195: EHS Audiogram Test | D195: #035 | E195: Extend / New
A196: 31.36 | B196: SAP HCM | C196: EHS Lung Function Test | D196: #036 | E196: Extend / New
A197: 31.37 | B197: SAP HCM | C197: Position Management to e-recruitment | D197: #037 | E197: Extend / New
A198: 31.38 | B198: SAP HCM | C198: Job Seeker Database to EPWP Org Management | D198: #038 | E198: Extend / New
A199: 31.39 | B199: SAP HCM | C199: Org Management to e-Recruitment | D199: #039 | E199: Extend / New
A200: 31.40 | B200: SAP HCM | C200: CRM to Employee Wellness | D200: #040 | E200: Extend / New
A201: 31.41 | B201: SAP HCM | C201: Insurance Inbound | D201: #041 | E201: Extend / New
A202: 31.42 | B202: SAP HCM | C202: Insurance Outbound | D202: #042 | E202: Extend / New
A203: 31.43 | B203: SAP HCM | C203: Group Life Outbound | D203: #043 | E203: Extend / New
A204: 31.44 | B204: SAP HCM | C204: Pension Contributions Outbound | D204: #044 | E204: Extend / New
... 356 more rows

Sheet C.4.2 Data Migration Cleansing
B1: Table C.4.2: Price Schedule 2: Implementation - Data Migration and Data Cleansing
C3: Complete the grey shaded cells.
A4: Item No | B4: Cost Elements | C4: Data Migration Implementation Cost Excl. VAT | D4: Data Cleansing Implementation Cost Excl. VAT
A5: 1 | B5: Analyse Discover Phase
A6: 2 | B6: Prepare Phase
A7: 3 | B7: Extract & Profile Phase
A8: 4 | B8: Transition & Cleanse Phase
A9: 5 | B9: Validate & Test Phase
A10: 6 | B10: Load Phase including Mock Cycles
A11: 7 | B11: Implement, Reconcile and GO-Live
A12: 8 | B12: Project Management
A13: 9 | B13: Change Management
A14: 10 | B14: Post Go-Live Stabilisation & Acceptance
A16: =A14+1 -> 11 | B16: Sub-Total Implementation Cost Schedule 2

Sheet C.4.3 EPIC Contraventions
B1: Table C.4.3: Price Schedule 3: Implementation - Emergency, Policing and Incident Control (EPIC) Contraventions
C3: Complete the grey shaded cells.
A4: Item No | B4: EPIC Contraventions Implementation Costs | C4: Cost Migration Case Solution Excl. VAT | D4: Cost Migration Mobile Solution Excl. VAT | E4: Indicative Cost to Phase Allocation
A5: 1 | B5: Initiate and Plan | E5: 15% to 20%
A6: 2 | B6: System Investigation and Analysis
A7: 3 | B7: Design
A8: 4 | B8: Configuration | E8: 40% to 70%
A9: 5 | B9: Customisation / Development
A10: 6 | B10: Integration
A11: 7 | B11: Testing
A12: 8 | B12: Final Acceptance Testing (User Acceptance Testing)
A13: 9 | B13: Go-Live | E13: 15% to 30%
A14: 10 | B14: Post Go-Live Stabilisation & Acceptance
A15: 11 | B15: Project Management
A16: 12 | B16: Change Management
A18: 13 | B18: Sub-Total Implementation Cost Schedule 3

Sheet C.4.4 Training Services
B1: Table C.4.4: Price Schedule 4: Training Services
C3: Complete the grey shaded cells.
A4: Item No | B4: Training Service Category | C4: Release 1 Excl. VAT | D4: Release 2 Excl. VAT | E4: Release 3 Excl. VAT | F4: Release 4 Excl. VAT
A5: 1 | B5: Training Needs Assessment
A6: 2 | B6: Training Approach
A7: 3 | B7: Training Curriculum
A8: 4 | B8: Training Roadmap
A9: 5 | B9: Training Schedule
A10: 6 | B10: Training Evaluation
A12: 7 | B12: Sub-Total Implementation Cost Schedule 4

Sheet C.4.5 Total Cost
B1: Table C.4.5: Price Schedule 5: Total Implementation Cost
D3: Complete ALL the grey shaded cells.
F4: Breakdown of Total Cost across Project Years
A5: No. | B5: Price Schedules | D5: Total Cost Excl. VAT | F5: Cost - Year 1 Excl. VAT | G5: Cost - Year 2 Excl. VAT | H5: Cost - Year 3 Excl. VAT
A6: 1 | B6: Price Schedule 1 | C6: Initiate and Plan
A7: =A6+1 -> 2 | C7: System Investigation and Analysis
A8: =A7+1 -> 3 | C8: Design
A9: 4 | C9: Configuration
A10: 5 | C10: Customisation / Development
A11: 6 | C11: Integration
A12: 7 | C12: Testing
A13: 8 | C13: Final Acceptance Testing (User Acceptance Testing)
A14: 9 | C14: Go-Live
A15: 10 | C15: Post Go-Live Stabilisation & Acceptance
A16: 11 | C16: Project Management
A17: 12 | C17: Change Management
A18: 13 | C18: Sub-Total Price Schedule 1
A19: 14 | B19: Price Schedule 2 | C19: Data Migration
A20: 15 | C20: Data Cleansing
A21: 16 | C21: Sub-Total Price Schedule 2
A22: 17 | B22: Price Schedule 3 | C22: EPIC Contraventions Case Solution
A23: 18 | C23: EPIC Contraventions Mobile Solution
A24: 19 | C24: Sub-Total Price Schedule 3
A25: 20 | B25: Price Schedule 4 | C25: Training Services
A27: =A25+1 -> 21 | B27: Total Implementation Cost
A29: =1 -> 1 | B29: Procurement of Additional add-on Implementation Services provision Schedule 5 | D29: R3,000,000.00 | F29: R1,000,000.00 | G29: R1,000,000.00 | H29: R1,000,000.00
B31: NOTE: Price Schedule Tables C.4.6 to C.4.9 are Rates Based and do not form part of the Total Cost presented on this Price Schedule

Sheet C.4.6 Training Sessions
B1: Table C.4.6: Price Schedule 6: Training Sessions
E3: Complete the grey shaded cells.
D4: Training Cost A - Train the Trainer / Super User / SME (In Person Training max 10 Attendees Council Facilities) | G4: Training Cost B - System Administrator (In Person Training max 10 Attendees Council Facilities) | J4: Training Cost C - Field Staff / Depots (Online) | M4: Training Cost D - Online Classroom (Online max 30 Attendees)
A5: Item No | B5: CCT Project Dimensions | C5: Module for Training | D5: Number of training Sessions A | E5: Rate per Training Session A Excl. VAT | F5: Sub-total Cost Training Sessions A Excl. VAT | G5: Number of training Sessions B | H5: Rate per Training Session B | I5: Cost per Training Session B Excl. VAT | J5: Number of training Sessions C | K5: Rate per Training Session C | L5: Cost per Training Session C Excl. VAT | M5: Number of training Sessions D | N5: Rate per Training Session C | O5: Cost per Training Session D Excl. VAT | P5: Total Anticipated Number of Training Sessions | Q5: Total Cost of Training Sessions
A6: 1 | B6: Technical Upgrade | C6: Technical Upgrade | D6: 30 | G6: 10 | J6: 8 | M6: 50 | P6: =SUM(D6+G6+J6+M6) -> 98
A7: Training of new functionality
A8: 1 | B8: Financial Management | C8: Finance (F1) | D8: 4 | G8: 2 | J8: 0 | M8: 10 | P8: =SUM(D8+G8+J8+M8) -> 16
A9: =A8+1 -> 2 | C9: Budgeting (F3) | D9: 3 | G9: 2 | J9: 0 | M9: 10 | P9: 15
A10: =A9+1 -> 3 | C10: Treasury (F4) | D10: 2 | G10: =D10 -> 2 | J10: 0 | M10: 2 | P10: 6
A11: 4 | C11: Funds Management | D11: 2 | G11: =D11 -> 2 | J11: 0 | M11: 2 | P11: 6
A12: 5 | C12: Asset Accounting | D12: 2 | G12: 2 | J12: 0 | M12: 2 | P12: =SUM(D12+G12+J12+M12) -> 6
A13: 6 | C13: Profitability and Performance Management (PaPM) | D13: 2 | G13: 2 | J13: 0 | M13: 2 | P13: 6
A14: 7 | C14: Business Planning and Consolidation (BPC) | D14: 2 | G14: =D14 -> 2 | J14: 0 | M14: 2 | P14: =SUM(D14+G14+J14+M14) -> 6
A15: 8 | C15: SAP Analytics Cloud (SAC) for Planning | D15: 3 | G15: 2 | J15: 0 | M15: 4 | P15: 9
A16: 9 | B16: Asset Lifecycle Management | C16: Asset Lifecycle Management (O1a) | D16: 6 | G16: 2 | J16: 6 | M16: 6 | P16: 20
A17: 10 | C17: Repairs and Maintenance (O1b) | D17: 2 | G17: =D17 -> 2 | J17: 10 | M17: 10 | P17: 24
A18: 11 | C18: Fleet Management (O1d) | D18: 2 | G18: 2 | J18: 5 | M18: 4 | P18: 13
A19: 12 | C19: Field Service Management | D19: 2 | G19: 2 | J19: 8 | M19: 8 | P19: 20
A20: 13 | C20: Spatial Asset Management including GEF | D20: 2 | G20: 2 | J20: 10 | M20: 10 | P20: 24
A21: 14 | C21: Crowd Services | D21: 2 | G21: 2 | J21: 6 | M21: 6 | P21: 16
A22: 15 | C22: Asset Performance Management | D22: 2 | G22: 2 | J22: 6 | M22: 6 | P22: 16
A23: 16 | C23: SAP Service and Asset Manager (SSAM) | D23: 2 | G23: =D23 -> 2 | J23: 10 | M23: 10 | P23: 24
A24: 17 | B24: Real Estate Management | C24: Property Value Chain (O3) and Real Estate Management (O2) | D24: 2 | G24: 2 | J24: 2 | M24: 8 | P24: 14
A25: 18 | C25: Treasury Loans | D25: 6 | G25: 2 | J25: 0 | M25: 8 | P25: 16
A26: 19 | C26: Real Estate Case Management | D26: 6 | G26: 2 | J26: 0 | M26: 10 | P26: 18
A27: 20 | B27: Utilities Management | C27: Revenue Management (F5) and Billing & Invoicing (F6) | D27: 2 | G27: 2 | J27: 0 | M27: 15 | P27: 19
A28: 21 | C28: Pre-Paid Vending Token Generation | D28: 2 | G28: 2 | J28: 5 | M28: 20 | P28: 29
A29: 22 | B29: Programme and Project Management | C29: Enterprise Portfolio and Project Management | D29: 5 | G29: 2 | J29: 0 | M29: 5 | P29: 12
A30: 23 | C30: Web Dynpro Replaement | D30: 5 | G30: 2 | J30: 0 | M30: 5 | P30: 12
A31: 24 | B31: Service Management | C31: Service Cloud | D31: 2 | G31: =D31 -> 2 | J31: 0 | M31: 10 | P31: 14
A32: 25 | C32: Self Service Management (Accelerator for Utilties) | D32: 2 | G32: =D32 -> 2 | J32: 0 | M32: 10 | P32: 14
A33: 26 | C33: Enterprise Service Management | D33: 2 | G33: =D33 -> 2 | J33: 0 | M33: 6 | P33: 10
A34: 27 | B34: Spend and Supply Chain Management | C34: Strategic Procurement | D34: 2 | G34: 2 | J34: 0 | M34: 3 | P34: =SUM(D34+G34+J34+M34) -> 7
A35: 28 | C35: Procurement (F8) | D35: 2 | G35: =D35 -> 2 | J35: 0 | M35: 3 | P35: 7
A36: 29 | C36: Inventory Management (O1c) | D36: 2 | G36: 2 | J36: 0 | M36: 3 | P36: 7
A37: 30 | C37: Contract Lifecycle Management (Custom CRMS) (F9) | D37: 2 | G37: 2 | J37: 0 | M37: 3 | P37: 7
A38: 31 | C38: Invoice Verification and Accounts Payable | D38: 2 | G38: 2 | J38: 5 | M38: 10 | P38: 19
A39: 32 | C39: Supply Chain & Logistics | D39: 2 | G39: 2 | J39: 0 | M39: 5 | P39: 9
A40: 33 | C40: SAP Ariba Supplier Risk | D40: 2 | G40: 2 | J40: 0 | M40: 5 | P40: 9
A41: 34 | C41: SAP Ariba Spend Control Tower | D41: 2 | G41: 2 | J41: 0 | M41: 5 | P41: 9
A42: 35 | C42: SAP Business Network Commerce Automation | D42: 2 | G42: 2 | J42: 0 | M42: 2 | P42: 6
A43: 36 | C43: SAP Ariba Buying for SAP S/4HANA | D43: 2 | G43: 2 | J43: 0 | M43: 10 | P43: 14
A44: 37 | C44: SAP Ariba Catalog | D44: 2 | G44: 2 | J44: 0 | M44: 2 | P44: 6
A45: 38 | B45: Manage Human Resources | C45: Payroll Processing | D45: 2 | G45: 2 | J45: 0 | M45: 2 | P45: 6
A46: 39 | C46: Employee Central | D46: 8 | G46: 2 | J46: 0 | M46: 20 | P46: 30
A47: 40 | C47: Time Tracking | D47: 8 | G47: 2 | J47: 0 | M47: 20 | P47: 30
A48: 41 | C48: Employee Health & Safety | D48: 4 | G48: 2 | J48: 0 | M48: 5 | P48: 11
A49: 42 | C49: Recruiting | D49: 3 | G49: 2 | J49: 0 | M49: 20 | P49: 25
A50: 43 | C50: Onboarding | D50: 3 | G50: 2 | J50: 0 | M50: 20 | P50: 25
A51: 44 | C51: Compensation Management | D51: 2 | G51: 2 | J51: 0 | M51: 20 | P51: 24
A52: 45 | C52: Performance & Goals | D52: 3 | G52: 2 | J52: 0 | M52: 20 | P52: 25
A53: 46 | C53: Career and Talent Development | D53: 3 | G53: 2 | J53: 0 | M53: 20 | P53: 24
A54: 47 | C54: Learning | D54: 2 | G54: 2 | J54: 0 | M54: 20 | P54: =SUM(D54+G54+J54+M54) -> 24
A55: 48 | C55: Travel Management | D55: 2 | G55: =D55 -> 2 | J55: 0 | M55: 2 | P55: 6
A56: 49 | C56: WalkMe | D56: 2 | G56: =D56 -> 2 | J56: 0 | M56: 2 | P56: 6
A57: 50 | C57: Employee Self Services (ESS) | D57: 8 | G57: 2 | J57: 0 | M57: 20 | P57: 30
A58: 51 | C58: Manager Self Services (MSS) | D58: 8 | G58: 2 | J58: 0 | M58: 20 | P58: 30
A59: 52 | B59: Generic | C59: SAP Integration Suite (G1) | D59: 2 | G59: 2 | J59: 0 | M59: 2 | P59: 6
A60: 53 | C60: Business Technology Platform (BTP) | D60: 2 | G60: =D60 -> 2 | J60: 0 | M60: 2 | P60: 6
A61: 54 | C61: Cloud for Access Control | D61: 2 | G61: 2 | J61: 0 | M61: 2 | P61: 6
A62: 55 | C62: SAP Analytics Cloud | D62: 4 | G62: 2 | J62: 0 | M62: 6 | P62: 12
A63: 56 | C63: SAP Business Data Cloud | D63: 2 | G63: 2 | J63: 0 | M63: 2 | P63: 6
A64: 57 | C64: Customer Managed Data Products | D64: 2 | G64: =D64 -> 2 | J64: 0 | M64: 2 | P64: 6
A65: 58 | C65: Cloud ERP Intelligence Private | D65: 2 | G65: 2 | J65: 0 | M65: 2 | P65: 6
A66: 59 | C66: Security & Authirisations inbcluding GRC | D66: 2 | G66: 2 | J66: 0 | M66: 0 | P66: 4
A67: 60 | B67: Information Life Cycle Management | C67: NL: Records Management (O7) | D67: 2 | G67: 2 | J67: 0 | M67: 15 | P67: 17
A68: 61 | C68: NL: Arching (O8) | D68: 1 | G68: 1 | J68: 0 | M68: 5 | P68: =SUM(D68+G68+J68+M68) -> 7
A69: 62 | B69: Signavio | C69: NL: Process Insights & Intelligence | D69: 2 | G69: =D69 -> 2 | J69: 0 | M69: 0 | P69: 4
A70: 63 | C70: NL: Process Modeller | D70: 2 | G70: 2 | J70: 0 | M70: 0 | P70: 4
A71: 64 | C71: NL: Process Transformation Manager | D71: 2 | G71: 2 | J71: 0 | M71: 0 | P71: 4
A72: 65 | C72: NL: Process Collaboration Hub | D72: 2 | G72: 2 | J72: 0 | M72: 0 | P72: 4
A73: 66 | B73: EPIC Contraventions (O9) | D73: 2 | G73: =D73 -> 2 | J73: 0 | M73: 0 | P73: 4
A75: =A73+1 -> 67 | B75: Total Training Sessions Cost | D75: =SUM(D6:D73) -> 215 | G75: =SUM(G6:G73) -> 141 | J75: =SUM(J6:J73) -> 81 | M75: =SUM(M6:M73) -> 541 | P75: =SUM(P6:P73) -> 975

Sheet C.4.7 Training Material Develop
B1: Table C.4.7: Price Schedule 7: Training Material Development
C3: Complete the grey shaded cells.
C4: Year 1 | G4: Year 2 | K4: Year 3
B5: Type of Training Material | C5: Rate Based Low Complexity Excl. VAT | D5: Rate Based Medium Complexity Excl. VAT | E5: Rate Based High Complexity Excl. VAT | G5: Rate Based Low Complexity Excl. VAT | H5: Rate Based Medium Complexity Excl. VAT | I5: Rate Based High Complexity Excl. VAT | K5: Rate Based Low Complexity Excl. VAT | L5: Rate Based Medium Complexity Excl. VAT | M5: Rate Based High Complexity Excl. VAT
A6: 1 | B6: Train the Trainer / Super User / SME Training Material
A7: 2 | B7: System Administrator Training Material
A8: 3 | B8: Field Staff Training Material
A9: 4 | B9: Online Training Material
A10: 5 | B10: External Training Material

Sheet C.4.8 Professional Services
B1: Table C.4.8: Price Schedule 8: Professional Services
D3: Complete the grey shaded cells.
D4: Year 1 | H4: Year 2 | L4: Year 3
A5: Item No | B5: Resource Category | C5: Resource Role | D5: Rate Based per Hour Excl. VAT | E5: Rate Based per Day Excl. VAT | F5: Rate Based per Month Excl. VAT | H5: Rate Based per Hour Excl. VAT | I5: Rate Based per Day Excl. VAT | J5: Rate Based per Month Excl. VAT | L5: Rate Based per Hour Excl. VAT | M5: Rate Based per Day Excl. VAT | N5: Rate Based per Month Excl. VAT
A6: 1 | B6: Project Management | C6: Programme Manager
A7: 2 | C7: Principal Project Manager
A8: 3 | C8: Project Administrator
A9: 4 | B9: Technical | C9: Lead Architect
A10: 5 | C10: Senior Solution Architect
A11: 6 | C11: Solution Architect
A12: 7 | C12: Data Architect
A13: 8 | C13: Data Migration Consultant
A14: 9 | C14: Technical Lead
A15: 10 | C15: Technical Specialist
A16: 11 | C16: Principal Developer
A17: 12 | C17: Developer
A18: 13 | C18: Senior Business Analyst
A19: 14 | C19: Business Analyst
A20: 15 | B20: Basis | C20: Basis Lead
A21: 16 | C21: Basis Architect / Specialist
A22: 17 | C22: Basis Senior Consultant
A23: 18 | C23: Basis Cloud / HANA Specialist
A24: 19 | B24: Functional | C24: Functional Lead (Overall)
A25: 20 | C25: Functional Analyst Principal Level
A26: 21 | C26: Functional Analyst Senior Level
A27: 22 | C27: Functional Analyst
A28: 23 | B28: Testing | C28: Test Lead
A29: 24 | C29: Test Engineer
A30: 25 | C30: Quality Assurance Tester
A31: 26 | B31: Cutover | C31: Deployment Lead
A32: 27 | C32: Cutover Consultant
A33: 28 | B33: Security / Authorisation / User Support | C33: Lead Security / Authorisation
A34: 29 | C34: Principal Consultant Security / Authorisation / GRC
A35: 30 | C35: Consultant Security / Authorisation / GRC
A36: 31 | B36: Quality Assurance | C36: Lead Quality Assurance
A37: 32 | C37: Consultant Quality Assurance
A38: 33 | B38: Change Management | C38: Change Lead
A39: 34 | C39: Senior Change Manager
A40: 35 | C40: Change Consultant
A41: 36 | B41: Training | C41: Training Lead
A42: 37 | C42: Senior Trainer
A43: 38 | C43: Trainer
A44: 39 | B44: Specialised SAP Resources | C44: Cloud Architect / Specialist
A45: 40 | C45: BTP Architect / Specialist
A46: 41 | C46: Integration Architect / Specialist
A47: 42 | C47: Basis Architect / Specialist
A48: 43 | C48: Migration Architect / Specialist
A49: 44 | C49: FIORI Architect / Specialist
A50: 45 | C50: Data Architect / Specialist
A51: 46 | C51: SAC Architect / Specialist
A52: 47 | C52: Solution Architect / Specialist
A53: 48 | C53: Technical Architect / Specialist

Sheet C.4.9 Development Services
B1: Table C.4.9: Price Schedule 9: Development Services
C3: Complete the grey shaded cells.
C4: Year 1 | G4: Year 2 | K4: Year 3
A5: Item No | B5: Development Category | C5: Rate Based Low Complexity Excl. VAT | D5: Rate Based Medium Complexity Excl. VAT | E5: Rate Based High Complexity Excl. VAT | G5: Rate Based Low Complexity Excl. VAT | H5: Rate Based Medium Complexity Excl. VAT | I5: Rate Based High Complexity Excl. VAT | K5: Rate Based Low Complexity Excl. VAT | L5: Rate Based Medium Complexity Excl. VAT | M5: Rate Based High Complexity Excl. VAT
A6: 1 | B6: Reports, Data and Analytics (R)
A7: =A6+1 -> 2 | B7: Data and Analytics (R)
A8: =A7+1 -> 3 | B8: Business Data Cloud / Dashboard ®
A9: 4 | B9: Integration (I) SAP to SAP
A10: 5 | B10: Integration (I) SAP to non-SAP
A11: 6 | B11: Conversions (C)
A12: 7 | B12: Enhancements (E)
A13: 8 | B13: Forms (F)
A14: 9 | B14: Workflow (W)
A15: 10 | B15: Case Solution
A16: 11 | B16: Web-services Internal Portal
A17: 12 | B17: Web-services External Portal
A18: 13 | B18: Mobile Solution - Angular
A19: 14 | B19: Mobile Solution - UI5
A20: 15 | B20: FIORI
